bitfinex/quotes_SOLUSD_20240626
["timestamp","ask_amount","ask_price","bid_price","bid_amount"]
[1719430740702,53.86,136.98,136.91,18.2598]
[1719430741003,7.3015,136.96,136.92,7.3032]
[1719430741512,7.3019,136.95,136.91,18.2598]
[1719430741823,7.3026,136.94,136.9,28.4282]
[1719430742207,53.86,136.98,136.9,46.6893]
[1719430742208,7.3021,136.95,136.9,46.6893]
[1719430742400,53.86,136.98,136.9,46.6893]
[1719430742401,7.3024,136.94,136.9,46.6893]
[1719430742608,7.3024,136.94,136.9,53.9938]
[1719430742809,18.2524,136.97,136.9,28.4282]
[1719430743007,18.2554,136.95,136.89,0.8527538]
[1719430743299,7.3046,136.9,136.89,0.8527538]
[1719430747615,7.3046,136.9,136.89,0.8527538]
[1719430747918,7.304,136.92,136.89,0.8527538]
[1719430748125,7.64086568,136.94,136.89,0.8527538]
[1719430748324,29.9411,136.96,136.89,0.8527538]
[1719430748510,18.2567,136.94,136.89,0.8527538]
[1719430748710,7.3046,136.9,136.89,0.8527538]
[1719430752131,7.303,136.93,136.89,0.8527538]
[1719430752423,44.14343756,136.98,136.89,0.8527538]
[1719430752611,7.3036,136.92,136.89,0.8527538]
[1719430752812,7.3031,136.93,136.89,0.8527538]
[1719430753407,7.3037,136.92,136.89,0.8527538]
[1719430753609,18.2538,136.96,136.89,0.8527538]
[1719430753812,7.303,136.93,136.89,0.8527538]
[1719430755414,7.3035,136.92,136.89,0.8527538]
[1719430756337,7.3046,136.9,136.89,0.8527538]
[1719430756542,18.2577,136.93,136.89,0.8527538]
[1719430757421,7.3046,136.9,136.89,0.8527538]
[1719430757611,7.3042,136.91,136.89,0.8527538]
[1719430757939,7.3031,136.93,136.89,8.1576538]
[1719430758322,7.3026,136.94,136.89,8.1576538]
[1719430759218,7.3026,136.94,136.9,1.46069451]
[1719430759713,18.2541,136.96,136.89,0.8527538]
[1719430760020,7.3041,136.91,136.89,0.8527538]
[1719430760229,7.3046,136.9,136.89,0.8527538]
[1719430760712,18.2564,136.94,136.89,0.8527538]
[1719430760955,7.3046,136.9,136.89,0.8527538]
[1719430764461,27.3046,136.9,136.89,0.8527538]
[1719430764917,7.3046,136.9,136.89,0.8527538]
[1719430765686,7.304,136.91,136.89,0.8527538]
[1719430765919,7.3046,136.9,136.89,0.8527538]
[1719430770796,27.6446,136.9,136.89,0.8527538]
[1719430771506,57.6446,136.9,136.89,0.8527538]
[1719430772494,27.6446,136.9,136.89,0.8527538]
[1719430773090,27.6446,136.9,136.89,0.3527538]
[1719430773409,49.5646,136.9,136.89,0.3527538]
[1719430778699,79.5646,136.9,136.89,0.3527538]
[1719430779098,79.5646,136.9,136.89,5.38e-05]
[1719430780841,124.5646,136.9,136.89,5.38e-05]
[1719430781137,102.20872392,136.9,136.89,5.38e-05]
[1719430783941,132.20872392,136.9,136.89,5.38e-05]
[1719430787547,87.20872392,136.9,136.89,5.38e-05]
[1719430788140,132.20872392,136.9,136.89,5.38e-05]
[1719430788521,87.20872392,136.9,136.89,5.38e-05]
[1719430791028,79.5646,136.9,136.89,5.38e-05]
[1719430792531,57.6446,136.9,136.89,5.38e-05]
[1719430793138,79.5646,136.9,136.89,5.38e-05]
[1719430793437,57.3046,136.9,136.89,5.38e-05]
[1719430794428,37.3046,136.9,136.89,5.38e-05]
[1719430795222,7.3046,136.9,136.89,5.38e-05]
[1719430796238,256.0,137.0,136.89,5.38e-05]
[1719430796544,20.0,136.97,136.9,7.8894]
[1719430796840,36.4911,137.02,136.91,21.4704]
[1719430797033,20.0,137.01,136.91,21.4704]
[1719430797233,7.3019,136.96,136.91,28.774]
[1719430797432,7.3018,136.96,136.92,8.4918]
[1719430797944,7.3025,136.94,136.92,8.4918]
[1719430798524,7.3019,136.96,136.92,8.4918]
[1719430798723,18.251,136.98,136.92,8.4918]
[1719430800039,7.3028,136.94,136.92,8.4918]
[1719430800240,7.303,136.93,136.92,8.4918]
[1719430800434,7.3025,136.94,136.92,8.4918]
[1719430800949,7.303,136.93,136.92,8.4918]
[1719430801446,7.3025,136.94,136.92,8.4918]
[1719430802155,7.3019,136.95,136.92,8.4918]
[1719430802728,18.5896,136.99,136.92,8.4918]
[1719430802930,7.303,136.93,136.92,8.4918]
[1719430803855,7.3035,136.92,136.91,21.4704]
[1719430805938,7.3031,136.93,136.91,21.4704]
[1719430806341,96.6736,136.98,136.91,21.4704]
[1719430806561,7.3029,136.94,136.91,21.4704]
[1719430807842,7.3016,136.96,136.91,28.7743]
[1719430808040,7.2998,136.99,136.94,7.3023]
[1719430808240,18.2475,137.01,136.93,8.73818576]
[1719430808241,7.3004,136.98,136.93,8.73818576]
[1719430808450,7.3014,136.96,136.92,26.6385]
[1719430808652,7.3009,136.97,136.92,33.9419]
[1719430808840,18.2475,137.01,136.92,33.9419]
[1719430809045,7.3009,136.97,136.92,33.9419]
[1719430809245,7.3026,136.94,136.92,8.3804]
[1719430809446,7.303,136.93,136.92,8.3804]
[1719430810339,7.3035,136.92,136.91,21.4704]
[1719430810946,18.2556,136.95,136.91,21.4704]
[1719430810947,7.3031,136.93,136.91,21.4704]
[1719430811338,18.2556,136.95,136.91,21.4704]
[1719430811339,7.3035,136.92,136.91,21.4704]
[1719430813543,7.3046,136.9,136.89,8.0890538]
[1719430815966,7.3046,136.9,136.89,5.38e-05]
[1719430816146,7.4746,136.9,136.89,5.38e-05]
[1719430816743,27.6446,136.9,136.89,5.38e-05]
[1719430817152,57.6446,136.9,136.89,5.38e-05]
[1719430819551,35.2872003,136.9,136.89,5.38e-05]
[1719430820547,65.2872003,136.9,136.89,5.38e-05]
[1719430821358,87.2072003,136.9,136.89,5.38e-05]
[1719430822263,7.311,136.78,136.77,19.797]
[1719430823161,7.3109,136.79,136.77,19.797]
[1719430823867,7.3107,136.79,136.77,19.797]
[1719430824050,7.311,136.78,136.77,19.797]
[1719430825771,7.3115,136.77,136.76,7.9669]
[1719430828058,7.3115,136.77,136.75,0.8527538]
[1719430828975,7.3108,136.79,136.75,0.8527538]
[1719430829265,40.1918,136.83,136.75,0.8527538]
[1719430829266,18.2741,136.81,136.75,0.8527538]
[1719430829453,20.34,136.8,136.75,0.8527538]
[1719430829649,7.312,136.76,136.75,0.8527538]
[1719430829854,20.34,136.8,136.75,0.8527538]
[1719430830048,7.3113,136.78,136.75,0.8527538]
[1719430830256,7.3117,136.77,136.75,0.8527538]
[1719430831169,21.92,136.8,136.75,0.8527538]
[1719430831370,7.312,136.76,136.75,0.8527538]
[1719430831546,7.652,136.76,136.75,0.8527538]
[1719430831868,7.312,136.76,136.75,0.8527538]
[1719430833060,27.652,136.76,136.75,0.8527538]
[1719430833652,49.572,136.76,136.75,0.8527538]
[1719430833871,52.01255907,136.76,136.75,5.38e-05]
[1719430834668,30.09255907,136.76,136.75,5.38e-05]
[1719430835154,52.01255907,136.76,136.75,5.38e-05]
[1719430835962,82.01255907,136.76,136.75,5.38e-05]
[1719430840773,60.09255907,136.76,136.75,5.38e-05]
[1719430840960,67.74340762,136.76,136.75,5.38e-05]
[1719430841166,47.40340762,136.76,136.75,5.38e-05]
[1719430841367,9.75255907,136.76,136.75,5.38e-05]
[1719430843884,7.3137,136.73,136.7,20.5946538]
[1719430844071,7.3147,136.71,136.7,20.5946538]
[1719430844277,7.3146,136.72,136.7,20.5946538]
[1719430844474,7.3147,136.71,136.7,20.5946538]
[1719430845089,7.3144,136.72,136.7,20.5946538]
[1719430845273,7.3132,136.74,136.7,20.5946538]
[1719430845587,2.44055907,136.76,136.7,27.9098538]
[1719430845778,7.3134,136.74,136.7,20.5946538]
[1719430846090,7.3138,136.73,136.7,20.5946538]
[1719430846474,2.44055907,136.76,136.7,27.9098538]
[1719430846785,7.313,136.75,136.71,7.3146]
[1719430846961,2.44055907,136.76,136.72,8.5166]
[1719430847162,2.44055907,136.76,136.74,7.3129]
[1719430848570,2.44055907,136.76,136.74,7.82001209]
[1719430848781,2.44055907,136.76,136.74,0.50711209]
[1719430849090,54.8107,136.84,136.75,20.4481]
[1719430849285,62.4568944,136.84,136.75,20.4481]
[1719430849489,7.3106,136.79,136.75,27.7606]
[1719430849983,7.311,136.78,136.75,20.4481]
[1719430850206,7.3115,136.77,136.75,20.4481]
[1719430850886,7.312,136.76,136.75,20.4481]
[1719430851879,7.3116,136.77,136.75,20.4481]
[1719430855086,7.3112,136.78,136.75,20.4481]
[1719430855997,7.3104,136.8,136.75,27.7605]
[1719430856191,7.3104,136.79,136.75,27.7605]
[1719430856583,7.31,136.8,136.76,7.3119]
[1719430857798,7.3104,136.79,136.75,27.7605]
[1719430858691,7.3101,136.8,136.75,20.4481]
[1719430858882,7.3101,136.8,136.76,7.3119]
[1719430859402,7.3105,136.79,136.75,27.7604]
[1719430859583,7.311,136.78,136.75,20.4481]
[1719430861811,7.3106,136.79,136.75,27.7606]
[1719430862117,7.311,136.78,136.75,20.4481]
[1719430865009,7.3106,136.79,136.75,27.7606]
[1719430865893,20.0,136.83,136.76,18.2797]
[1719430866098,18.2691,136.85,136.77,8.5705]
[1719430866099,7.31,136.8,136.77,8.5705]
[1719430866283,7.3104,136.79,136.77,8.5705]
[1719430866683,18.2737,136.81,136.75,20.4481]
[1719430867099,7.312,136.76,136.75,20.4481]
[1719430867592,7.3116,136.77,136.75,20.4481]
[1719430869310,7.312,136.76,136.75,20.4481]
[1719430870496,7.3117,136.77,136.75,20.4481]
[1719430870702,18.4433,136.82,136.75,20.4481]
[1719430870890,7.3115,136.77,136.75,20.4481]
[1719430871794,18.2733,136.82,136.75,20.4481]
[1719430871991,7.3104,136.8,136.76,7.312]
[1719430872191,7.3104,136.79,136.76,7.312]
[1719430872615,7.3104,136.79,136.75,27.7605]
[1719430873618,7.3101,136.8,136.76,7.312]
[1719430873911,40.1889,136.85,136.76,18.2799]
[1719430874097,20.34,136.84,136.76,18.2799]
[1719430874498,7.3085,136.83,136.79,7.3102]
[1719430874698,7.3091,136.82,136.78,18.2774]
[1719430874899,7.3091,136.82,136.78,25.5881]
[1719430875316,7.3096,136.81,136.77,8.5705]
[1719430875494,7.3096,136.81,136.77,15.882]
[1719430875816,7.3094,136.81,136.77,34.1605]
[1719430876019,7.3089,136.82,136.78,7.3108]
[1719430876404,7.3094,136.81,136.77,34.1604]
[1719430876713,18.2689,136.85,136.77,8.5705]
[1719430876714,18.2709,136.83,136.77,8.5705]
[1719430877616,7.311,136.78,136.77,8.5705]
[1719430878214,7.311,136.78,136.75,20.4481]
[1719430878215,7.3117,136.77,136.75,20.4481]
[1719430878415,7.312,136.76,136.75,20.4481]
[1719430879606,18.2729,136.82,136.75,20.4481]
[1719430879832,20.34,136.81,136.75,20.4481]
[1719430880126,7.3113,136.78,136.75,20.4481]
[1719430880328,7.3118,136.77,136.75,20.4481]
[1719430881046,7.312,136.76,136.75,20.4481]
[1719430882327,7.3117,136.77,136.75,20.4481]
[1719430883100,7.312,136.76,136.75,20.4481]
[1719430883516,7.3117,136.77,136.75,20.4481]
[1719430884201,7.3112,136.78,136.75,20.4481]
[1719430884607,18.2755,136.8,136.75,20.4481]
[1719430884608,7.3115,136.77,136.75,20.4481]
[1719430889320,7.3106,136.79,136.75,27.7606]
[1719430889514,20.0,136.81,136.75,20.4481]
[1719430889714,20.0,136.82,136.75,20.4481]
[1719430889920,7.311,136.78,136.75,20.4481]
[1719430890139,7.3115,136.77,136.75,20.4481]
[1719430890509,7.312,136.76,136.75,20.4481]
[1719430891057,7.3126,136.75,136.74,7.9673]
[1719430891220,18.2764,136.79,136.72,21.5863]
[1719430891221,18.2792,136.77,136.72,21.5863]
[1719430891404,7.3136,136.73,136.72,21.5863]
[1719430892625,7.3136,136.73,136.71,8.1177]
[1719430894344,7.3136,136.73,136.69,7.3158]
[1719430897353,7.3136,136.73,136.7,7.3152]
[1719430897732,7.3129,136.75,136.71,7.3147]
[1719430897933,21.2098,136.79,136.72,25.5995]
[1719430897934,7.3121,136.76,136.72,25.5995]
[1719430898151,7.3126,136.75,136.72,18.2854]
[1719430899445,7.3126,136.75,136.71,7.3145]
[1719430899844,18.2775,136.78,136.69,18.2882]
[1719430900156,7.3137,136.73,136.69,25.6037]
[1719430901455,7.3132,136.74,136.7,7.3152]
[1719430902348,7.3136,136.73,136.69,25.6038]
[1719430903363,7.3136,136.73,136.7,7.3152]
[1719430903577,7.3133,136.74,136.7,7.3152]
[1719430907450,7.3133,136.74,136.7,7.315]
[1719430908050,0.17,136.77,136.71,7.3147]
[1719430908250,0.34,136.77,136.71,7.3147]
[1719430908448,7.3131,136.74,136.7,7.3152]
[1719430909342,7.3142,136.72,136.69,25.6038]
[1719430909760,7.3138,136.73,136.69,25.6038]
[1719430911365,7.3133,136.74,136.7,7.3152]
[1719430915267,7.3126,136.75,136.71,7.3145]
[1719430915973,7.3131,136.74,136.7,7.315]
[1719430916374,7.62823321,136.78,136.71,18.2863]
[1719430916579,7.3124,136.76,136.72,7.314]
[1719430916872,43.94049999,136.79,136.71,25.6008]
[1719430916873,7.3126,136.75,136.71,25.6008]
[1719430917555,7.3131,136.74,136.71,18.2863]
[1719430918276,7.3131,136.74,136.7,7.315]
[1719430921785,27.02,136.75,136.7,7.315]
[1719430921786,34.3328,136.75,136.71,7.3147]
[1719430922278,7.3128,136.75,136.71,7.3147]
[1719430925382,7.3131,136.74,136.7,25.603]
[1719430926114,45.67424877,136.79,136.72,18.2854]
[1719430926385,45.67424877,136.79,136.71,34.3347]
[1719430926386,7.3129,136.75,136.71,34.3347]
[1719430927169,7.3131,136.74,136.71,34.3347]
[1719430927369,38.0465,136.79,136.72,7.3141]
[1719430927667,7.3127,136.75,136.71,52.621]
[1719430928395,7.3127,136.75,136.72,7.3141]
[1719430928597,7.3122,136.76,136.72,34.3341]
[1719430929469,7.3129,136.75,136.71,52.6213]
[1719430929907,7.3132,136.74,136.7,7.6551]
[1719430930196,7.3132,136.74,136.71,27.02]
[1719430931201,7.3128,136.75,136.71,34.3346]
[1719430933101,7.3122,136.76,136.72,34.334]
[1719430933307,7.3117,136.77,136.73,7.3135]
[1719430933482,7.3117,136.77,136.73,15.1272]
[1719430933805,7.3117,136.77,136.74,20.4358]
[1719430934512,7.3117,136.77,136.74,47.4558]
[1719430934806,7.3111,136.78,136.74,54.7688]
[1719430935408,7.3111,136.78,136.75,27.02]
[1719430936612,7.3111,136.78,136.74,46.0315]
[1719430936785,7.3111,136.78,136.76,27.02]
[1719430936980,7.31,136.8,136.77,27.02]
[1719430937195,7.3095,136.81,136.78,27.02]
[1719430938686,7.3086,136.83,136.8,27.02]
[1719430938991,7.3086,136.83,136.81,27.02]
[1719430939715,7.3086,136.83,136.8,48.5221]
[1719430939892,7.3088,136.82,136.8,48.5221]
[1719430943500,7.3085,136.83,136.8,48.5221]
[1719430944413,7.3089,136.82,136.8,48.5221]
[1719430945096,7.3084,136.83,136.8,48.5221]
[1719430946111,7.3089,136.82,136.8,48.5221]
[1719430947907,7.3085,136.83,136.8,48.5221]
[1719430948218,7.3082,136.84,136.8,74.1065]
[1719430948388,62.41203369,136.89,136.8,66.7967]
[1719430948591,7.3084,136.83,136.81,27.02]
[1719430949512,7.3088,136.82,136.81,27.02]
[1719430949702,7.3088,136.82,136.8,48.5221]
[1719430950606,18.2685,136.85,136.77,20.1251]
[1719430950804,7.311,136.78,136.77,20.1251]
[1719430951002,0.17,136.84,136.77,20.1251]
[1719430951003,7.3106,136.79,136.77,20.1251]
[1719430951309,7.3101,136.8,136.77,20.1251]
[1719430951496,18.271,136.83,136.77,20.1251]
[1719430951698,7.3097,136.81,136.77,27.4362]
[1719430953507,7.3099,136.8,136.77,20.1251]
[1719430954020,7.3106,136.79,136.77,20.1251]
[1719430954402,7.311,136.78,136.76,8.2471]
[1719430955202,7.3105,136.79,136.76,8.2471]
[1719430955405,7.3101,136.8,136.76,15.5591]
[1719430955813,7.3094,136.81,136.77,7.3113]
[1719430957421,22.0579,136.87,136.78,27.02]
[1719430957615,7.3084,136.83,136.79,25.586]
[1719430957815,34.3278,136.84,136.8,7.3097]
[1719430958016,20.6105,136.87,136.79,39.4683]
[1719430958215,7.3083,136.83,136.79,46.7784]
[1719430959324,7.3095,136.81,136.79,21.1924]
[1719430959511,7.3115,136.78,136.76,8.2471]
[1719430959704,27.02,136.78,136.75,21.1924]
[1719430959905,7.312,136.76,136.75,21.1924]
[1719430960312,34.3317,136.77,136.75,21.1924]
[1719430961623,34.3312,136.78,136.75,21.1924]
[1719430962826,25.89696694,136.83,136.75,39.4731]
[1719430963015,7.3079,136.84,136.8,7.3095]
[1719430963221,7.3079,136.84,136.75,21.1924]
[1719430963222,38.8769,136.87,136.79,18.275]
[1719430963403,27.02,136.83,136.78,7.3108]
[1719430963629,18.2685,136.85,136.77,34.3314]
[1719430963815,7.3095,136.81,136.77,7.3114]
[1719430964698,7.309,136.82,136.77,7.3114]
[1719430964904,7.309,136.82,136.78,7.3109]
[1719430965822,18.2685,136.85,136.76,25.5908]
[1719430966003,20.0,136.84,136.77,34.3314]
[1719430966205,20.0,136.84,136.78,7.311]
[1719430966611,20.0,136.84,136.77,27.02]
[1719430966612,27.02,136.81,136.76,18.2791]
[1719430966829,7.3108,136.79,136.75,28.5049]
[1719430967020,7.311,136.78,136.75,21.1924]
[1719430967519,7.3105,136.79,136.75,28.5049]
[1719430967922,18.2737,136.81,136.75,21.1924]
[1719430968426,7.3115,136.78,136.75,21.1924]
[1719430970325,20.0,136.84,136.75,57.7548]
[1719430970519,7.3083,136.83,136.79,7.3102]
[1719430970827,7.3079,136.84,136.8,7.3098]
[1719430971027,7.3084,136.83,136.79,25.5857]
[1719430971406,7.3088,136.82,136.79,18.2754]
[1719430972233,7.3088,136.82,136.77,15.5757]
[1719430972413,7.3094,136.81,136.77,15.5757]
[1719430972614,7.31,136.8,136.77,8.2644]
[1719430973027,7.3105,136.79,136.77,8.2644]
[1719430974112,7.3101,136.8,136.77,8.2644]
[1719430975125,7.3106,136.79,136.77,8.2644]
[1719430976134,7.3101,136.8,136.77,8.2644]
[1719430976831,18.2699,136.84,136.75,46.7862]
[1719430976832,7.3106,136.79,136.75,46.7862]
[1719430977133,18.2723,136.82,136.75,39.4737]
[1719430979516,7.3106,136.79,136.75,46.7863]
[1719430981118,7.311,136.78,136.75,39.4737]
[1719430981414,18.2723,136.82,136.75,39.4737]
[1719430981622,7.3098,136.81,136.77,7.3113]
[1719430982022,36.5352,136.86,136.75,21.1924]
[1719430982229,27.62291688,136.85,136.75,21.1924]
[1719430982413,7.3101,136.8,136.76,7.3117]
[1719430985844,7.3105,136.79,136.75,28.5048]
[1719430986339,58.4632,136.83,136.75,21.1924]
[1719430986525,7.312,136.76,136.75,21.1924]
[1719430986727,7.3117,136.77,136.75,21.1924]
[1719430986928,18.2751,136.8,136.75,21.1924]
[1719430987232,7.3113,136.78,136.75,21.1924]
[1719430987539,18.2716,136.83,136.75,39.4731]
[1719430987955,7.3099,136.81,136.77,7.3115]
[1719430989027,20.0,136.85,136.78,7.3109]
[1719430989028,7.309,136.82,136.78,7.3109]
[1719430989532,7.309,136.82,136.78,15.3126]
[1719430990049,7.3095,136.81,136.78,8.0017]
[1719430991147,7.3099,136.8,136.78,8.0017]
[1719430991322,7.3104,136.79,136.78,8.0017]
[1719430992848,7.3111,136.78,136.75,21.1924]
[1719430993421,7.3116,136.77,136.75,21.1924]
[1719430993849,67.86247451,136.85,136.75,21.1924]
[1719430994152,7.3105,136.79,136.75,28.5048]
[1719430994441,7.31,136.8,136.76,7.3119]
[1719430994645,27.62317451,136.85,136.75,39.4738]
[1719430994646,7.3088,136.82,136.77,18.2782]
[1719430994855,20.0,136.85,136.77,18.2782]
[1719430995628,7.3093,136.82,136.78,7.3108]
[1719430995828,7.3094,136.81,136.77,25.5895]
[1719430996235,7.3089,136.82,136.78,7.3108]
[1719430998234,7.3083,136.83,136.79,33.9357]
[1719431001254,7.3079,136.84,136.79,26.6255]
[1719431001453,7.3084,136.83,136.79,33.9359]
[1719431002433,18.2676,136.86,136.8,21.5319]
[1719431002633,7.62213109,136.89,136.86,20.882]
[1719431002868,19.7807,136.98,136.87,7.646]
[1719431002869,7.3036,136.92,136.87,7.646]
[1719431003064,45.65154485,136.98,136.89,7.3051]
[1719431003359,20.0,137.01,136.92,7.3034]
[1719431003360,58.0285,137.01,136.92,7.3034]
[1719431003546,7.3014,136.96,136.92,7.3034]
[1719431003957,7.3012,136.97,136.93,7.3025]
[1719431004259,7.3012,136.97,136.92,7.3034]
[1719431004459,7.3014,136.96,136.92,7.3034]
[1719431005134,7.3019,136.95,136.91,25.7336]
[1719431005352,7.3019,136.95,136.91,18.2598]
[1719431005741,7.3019,136.95,136.91,25.5636]
[1719431006860,7.3019,136.95,136.91,18.2598]
[1719431007161,7.3024,136.94,136.89,7.3049]
[1719431007344,7.3024,136.94,136.9,0.17]
[1719431007547,7.3024,136.94,136.9,7.4745]
[1719431007858,7.3024,136.94,136.9,7.3045]
[1719431008243,18.2529,136.97,136.88,18.4334]
[1719431008443,7.3034,136.93,136.89,7.3051]
[1719431008758,7.3024,136.94,136.9,7.3045]
[1719431009147,7.3021,136.95,136.9,7.3045]
[1719431009348,7.3021,136.95,136.91,7.304]
[1719431011459,38.2491,137.0,136.9,18.4308]
[1719431011671,38.2491,137.0,136.91,0.34]
[1719431011971,7.3017,136.96,136.92,7.3034]
[1719431012764,7.302,136.95,136.91,7.6439]
[1719431014366,38.2491,137.0,136.9,25.5652]
[1719431014367,7.3025,136.94,136.9,25.5652]
[1719431015068,7.3031,136.93,136.9,18.2608]
[1719431015254,7.3026,136.94,136.9,25.5653]
[1719431015566,18.2536,136.96,136.89,0.34]
[1719431015770,7.3027,136.94,136.9,7.3044]
[1719431017362,7.3021,136.95,136.91,7.3039]
[1719431018760,7.3024,136.94,136.9,7.3045]
[1719431023776,18.2522,136.97,136.89,18.2627]
[1719431023984,7.303,136.93,136.89,25.5677]
[1719431024275,18.2522,136.97,136.89,18.2627]
[1719431025179,7.3028,136.94,136.9,7.4745]
[1719431025367,18.2522,136.97,136.9,7.3045]
[1719431025679,7.303,136.93,136.89,25.5676]
[1719431027579,7.3026,136.94,136.9,7.3044]
[1719431027959,7.303,136.93,136.9,7.3044]
[1719431028956,7.3025,136.94,136.9,7.3044]
[1719431030284,7.3021,136.95,136.91,7.304]
[1719431031597,7.3024,136.94,136.91,7.304]
[1719431033262,7.303,136.93,136.9,42.7135]
[1719431033463,18.2522,136.97,136.9,35.4092]
[1719431033779,18.2522,136.97,136.9,8.4792]
[1719431034173,7.3034,136.93,136.9,8.4792]
[1719431034769,7.3034,136.93,136.9,15.7837]
[1719431035379,7.3034,136.93,136.9,8.4792]
[1719431036288,7.3034,136.93,136.9,15.7837]
[1719431036584,7.3025,136.94,136.9,15.7837]
[1719431037465,18.255,136.95,136.9,8.4792]
[1719431038387,7.304,136.92,136.9,8.4792]
[1719431039991,7.3032,136.93,136.9,8.4792]
[1719431043189,18.255,136.95,136.89,7.305]
[1719431043389,18.2579,136.93,136.86,36.0705]
[1719431043576,18.2579,136.93,136.86,28.7638]
[1719431043577,7.3052,136.89,136.86,28.7638]
[1719431044168,34.2352,136.89,136.86,28.7638]
[1719431047495,26.93,136.87,136.82,47.1664]
[1719431047678,7.306,136.88,136.82,47.1664]
[1719431047873,26.93,136.87,136.82,47.1664]
[1719431048080,26.93,136.87,136.82,74.0964]
[1719431048281,34.2362,136.87,136.83,7.3079]
[1719431048488,26.93,136.87,136.83,7.3079]
[1719431048972,34.2364,136.87,136.83,7.3079]
[1719431049177,26.93,136.87,136.83,7.3079]
[1719431049381,34.2362,136.87,136.82,47.1664]
[1719431049586,34.2362,136.87,136.82,54.475]
[1719431049783,34.2362,136.87,136.83,7.3083]
[1719431049994,34.2362,136.87,136.82,54.475]
[1719431050506,34.2362,136.87,136.83,7.3082]
[1719431052807,36.5251,136.9,136.82,28.8953]
[1719431053100,36.5251,136.9,136.79,26.93]
[1719431053101,7.3079,136.84,136.79,26.93]
[1719431053403,7.3079,136.84,136.78,18.277]
[1719431053404,7.3079,136.84,136.8,7.4798]
[1719431053587,7.3084,136.83,136.79,7.3103]
[1719431054098,18.2651,136.88,136.79,7.3103]
[1719431054099,7.3079,136.84,136.79,7.3103]
[1719431054588,34.2379,136.84,136.79,7.3103]
[1719431054985,18.267,136.86,136.78,25.7578]
[1719431055383,18.267,136.86,136.78,25.5878]
[1719431055384,7.3092,136.82,136.78,25.5878]
[1719431055596,26.93,136.85,136.78,18.277]
[1719431055801,7.3092,136.82,136.78,18.277]
[1719431056188,34.2392,136.82,136.78,25.5877]
[1719431056389,7.3092,136.82,136.78,25.5877]
[1719431057884,7.3092,136.82,136.78,18.277]
[1719431058304,7.3092,136.82,136.78,25.5878]
[1719431058805,7.3094,136.81,136.76,26.93]
[1719431058990,7.3094,136.81,136.77,0.17]
[1719431059190,7.3094,136.81,136.77,7.4815]
[1719431059892,34.2394,136.81,136.77,7.4815]
[1719431060400,7.3094,136.81,136.77,7.4815]
[1719431060702,34.239,136.82,136.78,7.3109]
[1719431062211,7.3094,136.81,136.79,1.46180046]
[1719431062508,18.267,136.86,136.79,19.73730046]
[1719431062683,38.2639,136.89,136.78,0.17]
[1719431062891,7.3072,136.85,136.81,52.5123]
[1719431063090,7.308,136.84,136.8,36.3556]
[1719431063609,7.3074,136.85,136.81,7.3093]
[1719431063813,7.3078,136.84,136.8,54.6303]
[1719431064409,7.3083,136.83,136.8,47.3205]
[1719431064985,7.3083,136.83,136.79,34.5803]
[1719431064986,7.3083,136.83,136.79,7.3103]
[1719431065187,7.3089,136.82,136.78,7.3108]
[1719431067298,7.3084,136.83,136.79,7.3103]
[1719431068516,7.3089,136.82,136.78,7.3108]
[1719431069709,7.3094,136.81,136.77,25.7591]
[1719431071500,7.3094,136.81,136.77,25.5891]
[1719431072622,7.309,136.82,136.78,7.3109]
[1719431074716,7.3085,136.83,136.79,7.3104]